{"text_format":"1","workbook":"xlsx","n_sheets":3,"sheets":["부식류","육류","특수조건"],"not_rendered":{"charts":0,"images":0,"macros":1,"external_links":0,"defined_names":3,"comments":2,"pivot_tables":0},"unopened":[],"bounds":{"document_bytes":16777216,"sheet_cells":100000,"rows_first":2000,"rows_last":500,"rows_between":2000,"halvings":0,"cell_chars":16384,"cell_head_chars":4096},"cells_cut":0,"cells_raw":0,"read":"whole","date_system":"1900"}

{"sheet":"부식류","index":0,"n_rows":127,"n_cols":26,"rows_kept":127,"cut":false,"hidden":false,"merged":[[3,0,4,26],[0,0,0,4],[0,5,0,7],[0,8,0,11],[0,12,0,16],[0,17,0,20],[0,21,0,23],[1,0,1,4],[1,5,1,7],[1,8,1,11],[2,0,2,9],[2,22,2,23],[9,22,9,26],[10,15,10,17],[10,18,10,21],[10,22,10,26],[6,0,6,26],[7,2,7,26],[8,1,8,2],[8,3,8,9],[8,10,8,13],[8,15,8,20],[8,22,8,26],[9,1,10,2],[9,3,10,9],[9,10,10,13],[9,15,9,17],[9,18,9,21],[16,0,16,26],[19,2,19,26],[20,2,20,26],[21,2,21,26],[11,2,11,26],[13,2,13,4],[13,5,13,8],[13,10,13,13],[14,2,14,4],[14,6,14,9],[14,10,14,26],[22,2,22,26],[24,0,24,26],[25,2,27,26],[28,2,29,26],[30,2,32,26],[38,2,41,26],[42,2,44,26],[48,0,48,26],[49,1,52,26],[54,0,54,26],[74,0,74,26],[55,2,57,26],[58,2,59,26],[60,2,60,6],[60,7,60,9],[60,10,60,13],[60,14,60,16],[60,17,60,20],[61,2,61,26],[62,2,62,26],[63,2,65,26],[66,2,68,26],[69,2,72,26],[75,2,77,26],[78,2,79,26],[81,0,81,26],[82,2,82,7],[82,8,82,12],[82,13,82,14],[103,2,104,26],[105,2,106,26],[107,2,108,26],[83,2,83,26],[85,0,85,26],[86,2,89,26],[90,2,92,26],[93,2,94,26],[96,0,96,26],[124,0,125,26],[126,0,127,26],[12,2,12,26],[17,2,18,26],[33,2,35,26],[36,2,37,26],[45,2,46,26],[110,0,110,26],[111,2,113,26],[114,2,116,26],[117,2,118,26],[119,2,120,26],[121,2,122,26],[97,2,98,26],[99,2,100,26],[102,0,102,26]]}
[" 공고 개시 시간 :",null,null,null,null,"13:30",null,null,"공고 마감 일자 :",null,null,null,"2014-04-28",null,null,null,null,"마감시간 :",null,null,null,"10:00"]
[" 시장조사금액 :",null,null,null,null,102570660]
[{"$f":"\"OO고등학교 공고 제 \"&YEAR(TODAY())&TEXT(MONTH(TODAY()),\"00\")&TEXT(DAY(TODAY()),\"00\")&\"호\"","v":"OO고등학교 공고 제 20140425호"},null,null,null,null,null,null,null,null,null,null,null,null,null,null,null,null,null,null,null,null,null,null,null,null,"01:00:00"]
["부식구매 소액수의 전자견적 제출 공고"]
[]
[{"$f":"YEAR(F14)&\"년 \"&MONTH(F14)&\"월 부식\"","v":"2014년 5월 부식"},"부식"]
["1. 견적에 부치는 사항"]
[null,"가.","구매물품 내역"]
[null,"번호",null,"건명",null,null,null,null,null,null,"품명 및 수량",null,null,null,null,"입찰서 제출기간",null,null,null,null,null,null,"개찰일시"]
[null,1,null,{"$f":"YEAR(F14)&\"년 \"&MONTH(F14)&\"월분 부식구매 전자견적 제출 공고\"","v":"2014년 5월분 부식구매 전자견적 제출 공고"},null,null,null,null,null,null,"품목별 설명서 참조",null,null,null,null,{"$f":"YEAR(TODAY())&\"-\"&TEXT(MONTH(TODAY()),\"00\")&\"-\"&TEXT(DAY(TODAY()),\"00\")&\" \"","v":"2014-04-25 "},null,null,{"$f":"\"(\"&CHOOSE(WEEKDAY(TODAY()),\"일\",\"월\",\"화\",\"수\",\"목\",\"금\",\"토\")&\")  \"&F1&\"~\"","v":"(금)  13:30~"},null,null,null,{"$f":"P11&\" (\"&TEXT(P11,\"aaa\")&\")\"","v":"2014-04-28 (월)"}]
[null,null,null,null,null,null,null,null,null,null,null,null,null,null,null,{"$f":"M1","v":"2014-04-28"},null,null,{"$f":"\"(\"&TEXT(P11,\"aaa\")&\")  \"&V1","v":"(월)  10:00"},null,null,null,{"$f":"V1+Z3","v":"11:00:00"}]
[null,"나.","납품방법:  일일 발주서에 따른 분할 납품"]
[null,"다.","납품현장:  OO고등학교 급식소내"]
[null,"라.","납품기한:",null,null,{"$f":"DATE(YEAR(TODAY()),MONTH(TODAY())+1,1)","v":"2014-05-01"},null,null,null,"~",{"$f":"DATE(YEAR(TODAY()),MONTH(TODAY())+2,0)","v":"2014-05-31"}]
[null,"마.","기초금액:",null,null,"\\",{"$f":"F2","v":102570660},null,null,null,{"$f":"\"원정 (부가세 포함)\"","v":"원정 (부가세 포함)"}]
[]
["2. 견적제출 및 계약방식"]
[null,"가.","지방자치단체 수의계약 운용요령'(행정안전부예규 제404호(2012.03.22)에 의한 나라장터시스템을 이용하여 2인 이상으로부터 견적서를 제출받는 소액수의계약 및 전자계약 대상입니다."]
[]
[null,"나.","최저가낙찰자결정 방식 적용입니다."]
[null,"다.","소액수의계약(총액) 유형이며, 지역제한(경북 구미)입니다."]
[null,"라.","본 물품구매는 청렴계약제 시행대상입니다."]
[null,"마.","예정가격은 복수예정가격으로 결정됩니다."]
[]
["3. 견적제출 참가자격"]
[null,"가. ","본 입찰은 '지문인식 신원확인 입찰'이 적용되므로 개인인증서를 보유한 대표자 또는 입찰대리인은 \n국가종합전자조달시스템 전자입찰특별유의서 제10조 제1항 제5호에 따라 미리 지문정보를 등록하여야 전자입찰서 제출이 가능합니다."]
[]
[]
[null,"나.","지방자치단체를 당사자로 하는 계약에 관한 법률 시행령 제13조에 의한 자격을 갖추고, 지방자치단체 수의계약 운영요령(행정안전부 예규 제373호, 2011.09.15)에 의한 결격사유가 없어야 합니다."]
[]
[null,"다.","지방자치단체를 당사자로 하는 계약에 관한 법률 시행령 제 13조 및 동법시행규칙 제14조에 의한 \n유자격업체로서 주된 영업장을 경상북도 구미시에 두고 당해 입찰 목적물의 운반에 필요한 냉동탑차, 사무실(점표)을 보유 또는 임차하고 있는 자."]
[]
[]
[null,"라.","식품위생법시행령 제21조 제5호에 의한 집단급식소 식품판매업신고를 필한 업체, 식품위생법 시행령 및 동법 시행규칙 개정에 의한 '집단급식소 식품판매업 영업신고'를 완료하고 영업신고증을 제출할수 있는 업체여야 합니다."]
[]
[]
[null,"마.","차량 보험 및 영업배상책임보험 가입된 자(1인당 1천만원 이상, 1사고당 1억원 이상)이면서 지방세, 국세완납증명서를 제시할수 있는 자여야 합니다."]
[]
[null,"바.","본 물품구매는 전자입찰방식으로 집행되므로 조달청 전자입찰 이용자등록을 필한자 이어야합니다. (전자입찰 미등록 업체인 경우에는 조달청 전자입찰 시스템가입 및 공인인증기관의 인증서를 받은후 입찰집행일 전일까지 국가종합전자조달시스템 홈페이지(http://g2b.go.kr)에 이용자 등록을 \n하여야 합니다."]
[]
[]
[]
[null,"사.","본 입찰의 무자격자가 고의로 무효의 입찰을 하거나, 낙찰자가 정당한 사유없이 계약체결 또는 \n이행을 하지않을 경우 지방자치단체를 당사자로 하는 계약에 관한 법률시행령 제92조 규정에 의거 \n부정당업자로 제재 처분합니다."]
[]
[]
[null,"아.","행정처분(영업정지, 품목제조정지, 과징금, 과태료, 벌금) 만료일로부터 3개월 경과하지않은 자 또는 해당기관으로부터 고발조치 중인 자는 입찰에 참여할수 없습니다."]
[]
[]
["4. 현품 설명"]
[null," 별도의 현품설명은 없으며, 반드시 붙임 구매목록 첨부파일을 숙지한후 견적서 제출에 참여하시기 \n바라며, 숙지하지 못한 책임은 견적 제출자에 있습니다.\n 공고기간 중 규격서 및 내역서 등에 대하여 문의사항이 있으면 급식실(☎123-4567) 또는 \n행정실(☎123-4567)로 문의하시기 바랍니다."]
[]
[]
[]
[]
["5. 견적서 제출"]
[null,"가.","본 입찰은 지문인식 신원확인 입찰이 적용됩니다. 다만, 지문인식신원확인 입찰이 곤란한 자는 \n국가종합전자조달시스템 전자입찰특별유의서 제10조 제1항 제6호 및 제7호의 절차에 따라 예외적으로 개인인증서에 의한 전자입찰서 제출이 가능합니다."]
[]
[]
[null,"나.","본 입찰은 전자입찰로만 집행하며, 전자입찰서는 국가종합전자조달 시스템 홈페이지의 \n전자입찰시스템을 이용하여 제출하여야 합니다."]
[]
[null,"다.","입찰서 제출기한:",null,null,null,null,{"$f":"P10","v":"2014-04-25 "},null,null,{"$f":"S10","v":"(금)  13:30~"},null,null,null,{"$f":"P11","v":"2014-04-28"},null,null,{"$f":"S11&\".\"","v":"(월)  10:00."}]
[null,null,"(제출기간 중에는 24시간 입찰서 제출이 가능합니다.)"]
[null,"라.","입찰서의 제출확인은 전자입찰시스템 웹 보낸문서함에서 하시기 바랍니다."]
[null,"마.","한번 제출한 입찰서는 취소하거나 수정할수 없습니다. 단, 조달청 물품구매 전자입찰특별유의서 제10조에 따라 입찰취소를 신청한 경우 입찰집행관은 입찰서를 무효처리할수 있으며, 이 경우 취소의사를 표시한 입찰자는 당해입찰에 대하여 재입찰을 할수 없습니다."]
[]
[]
[null,"바.","전자입찰시스템 또는 전송회신의 장애로 입찰연기의 경우 전자입찰시스템 장애발생이전에 유효하게 접수된 입찰서는 연기된 입찰에 유효하게 접수된 것으로 보며, 입찰서를 다시 제출할수 없습니다."]
[]
[]
[null,"사.","견적제출에 참가하고자 하는 자는 지방자치단체를 당사자로 하는 계약에 관한 법률 시행령등의 \n입찰관련법령 및 동시행규칙 제39조 제1항의 규정에 의한 물품구매전자입찰특별유의서, 입찰유의서, 계약일반조건 및 특수조건 등 기타 필요한 모든 사항에 관하여 입찰서 제출전에 완전히 숙지하여야 하며, 이를 숙지하지 못한 책임은 입찰자에게 있습니다."]
[]
[]
[]
[]
["6. 입찰보증금"]
[null,"가.","지방자치단체를 당사자로 하는 계약에 관한 법률 시행령 제37조 제3항 및 제4항에 의거 모든 입찰참가자에게 입찰보증금납부를 면제하며, 입찰보증금지급확약서의 제출은 입찰보증금지급확약내용이 기재된 전자입찰서의 제출로 갈음합니다."]
[]
[]
[null,"나.","입찰보증금의 국고귀속은 지방자치단체를 당사자로 하는 계약에 관한 법률시행령 제38조의 규정에 의합니다."]
[]
[]
["7. 개찰"]
[null,"가. 입찰집행(개찰)일시:","입찰집행(개찰)일시:",null,null,null,null,null,{"$f":"W10","v":"2014-04-28 (월)"},null,null,null,null,{"$f":"W11","v":"11:00:00"}]
[null,"나.","개찰장소: OO고등학교 입찰집행관 PC"]
[]
["8. 예정가격 및 낙찰자 결정"]
[null,"가.","예정가격 작성은 '지방자치단체 원가계산 및 예정가격 작성요령'(행정안전부 예규 제374호, 2011.09.14)에 의거 기초금액의 ±3% 범위내에서 서로 다른 15개의 복수예비가격을 작성하고, 입찰참가자 전원이 2개씩 추첨한 번호 중 가장 많이 선택된 4개의 복수예비가격을 산술평균한 금액을 예정가격으로 결정한다."]
[]
[]
[]
[null,"나.","예정가격 이하로서 최저가격으로 제출한 자 순서로 지방자치단체 수의계약 운영요령(행정안전부 예규 제373호,2011.09.14)에 의거 계약상대자를 결정하며, 동 요령에 명시된 결격사유 중 어느하나에도 해당되지 않는 자를 계약상대자로 결정합니다."]
[]
[]
[null,"다.","동일가격 견적인 경우는 지방자치단체를 당사자로 하는 계약에 관한 법률 시행령 제48조에 의거 추첨에 의하여 낙찰자를 결정한다."]
[]
[]
["9. 입찰의 무효"]
[null,"가.","지방자치단체를 당사자로 하는 계약에 관한 법률 시행령 제39조 제4항, 동 시행규칙 제42조, 물품구매입찰유의서 제12조 규정에 의합니다."]
[]
[null,"나.","전자입찰서가 제출마감시간까지 국가종합전자조달(G2B)문서서버에 도착하지 않았거나, 컴퓨터인식불능으로 인한 입찰서는 무효로 처리합니다."]
[]
[]
["10. 청렴계약 이행"]
[null,"가.","본 물품구매는 청렴계약제 시행대상이므로 청렴계약입찰특별유의서 제2조 제1항에 의거 청렴계약이행각서(업체 제출용)를 제출하여야 합니다."]
[]
[null,"나.","제출방법: 입찰에 참여하는 모든 업체는 동 특별유의서 제2조 제1항에 의거 청렴계약이행각서를 제출한것으로 간주합니다."]
[]
[null,"다.","낙찰대상자로 선정된 업체는 대표자가 청렴이행각서를 서명하여 본교 분임경리관에게 계약체결시 \n제출하여야 합니다."]
[]
[]
["11. 기타 참고사항"]
[null,"가.","입찰에 참가하는 자는 입찰공고조건, 물품구매입찰유의서, 물품구매계약일반조건, 물품구매계약특수조건, 물품구매전자입찰특별유의서, 공공입찰통합관리시스템 입찰자용 이용약관 및 기타 입찰에 필요한 모든 사항을 숙지하여야하며, 숙지하지 못하여 발생하는 책임은 입찰자에게 있습니다."]
[]
[]
[null,"나.","전자입찰참가 희망업체의 전산장비 준비부족 등의 사유로 전자입찰등록 및 투찰이 곤란한 경우에는 투찰시간 마감 24시간 이전에 조달청 전자입찰 콜센터(☎1588-0800)로 문의하여 주시기 바라며, 문의를 하지않아 발생되는 모든 책임은 입찰참가자에게 있습니다."]
[]
[]
[null,"다.","본 공고는 국가종합전자조달 시스템 홈페이지(http://www.g2b.go.kr)의 '입찰정보-물품-공고현황'에도 게재되니 이용하시기 바랍니다."]
[]
[null,"라.","입찰결과에 대한 정보는 국가종합전자조달(http://www.g2b.go.kr)의 '입찰정보-물품-개찰결과'를 이용하시기 바랍니다."]
[]
[null,"마.","기타 입찰에 관하여 자세한 사항은 급식실(☎123-4567) 또는 행정실(☎123-4567)로 문의하시기 \n바랍니다."]
[]
[]
[{"$f":"YEAR(TODAY())&\"년  \"&MONTH(TODAY())&\"월  \"&DAY(TODAY())&\"일\"","v":"2014년  4월  25일"}]
[]
["OO고등학교장"]

{"sheet":"육류","index":1,"n_rows":127,"n_cols":26,"rows_kept":127,"cut":false,"hidden":false,"merged":[[0,17,0,20],[8,15,8,20],[3,0,4,26],[6,0,6,26],[8,1,8,2],[8,3,8,9],[8,10,8,13],[0,21,0,23],[2,22,2,23],[8,22,8,26],[0,0,0,4],[0,5,0,7],[0,8,0,11],[0,12,0,16],[1,8,1,11],[1,0,1,4],[16,2,16,26],[17,2,17,26],[9,22,9,26],[10,22,10,26],[10,15,10,17],[12,5,12,8],[12,10,12,13],[10,18,10,21],[9,18,9,21],[9,15,9,17],[15,0,15,26],[1,5,1,7],[13,6,13,9],[13,10,13,26],[7,2,7,26],[11,2,11,26],[12,2,12,4],[13,2,13,4],[9,1,10,2],[9,3,10,9],[9,10,10,13],[2,0,2,9],[18,2,18,26],[19,2,19,26],[20,2,20,26],[41,2,43,26],[23,0,23,26],[21,2,21,26],[24,2,26,26],[47,0,47,26],[48,1,51,26],[29,2,31,26],[32,2,34,26],[37,2,40,26],[35,2,36,26],[44,2,45,26],[53,0,53,26],[54,2,56,26],[57,2,58,26],[59,2,59,6],[59,7,59,9],[59,10,59,13],[59,14,59,16],[59,17,59,20],[60,2,60,26],[61,2,61,26],[62,2,64,26],[65,2,67,26],[68,2,71,26],[80,0,80,26],[81,2,81,7],[81,8,81,12],[81,13,81,14],[73,0,73,26],[74,2,76,26],[77,2,78,26],[85,2,88,26],[89,2,92,26],[93,2,94,26],[84,0,84,26],[96,0,96,26],[126,0,127,26],[27,2,28,26],[117,2,118,26],[119,2,120,26],[121,2,122,26],[124,0,125,26],[107,2,108,26],[110,0,110,26],[111,2,113,26],[114,2,116,26],[97,2,98,26],[99,2,100,26],[102,0,102,26],[103,2,104,26],[105,2,106,26],[82,2,82,26]]}
[" 공고 개시 시간 :",null,null,null,null,"13:30",null,null,"공고 마감 일자 :",null,null,null,"2014-04-28",null,null,null,null,"마감시간 :",null,null,null,"10:00"]
[" 시장조사금액 :",null,null,null,null,21702000]
[{"$f":"\"□□고등학교 공고 제 \"&YEAR(TODAY())&TEXT(MONTH(TODAY()),\"00\")&TEXT(DAY(TODAY()),\"00\")&\"호\"","v":"□□고등학교 공고 제 20140425호"},null,null,null,null,null,null,null,null,null,null,null,null,null,null,null,null,null,null,null,null,null,null,null,null,"01:00:00"]
["육류구매 소액수의 전자견적 제출 공고"]
[]
[{"$f":"YEAR(F13)&\"년 \"&MONTH(F13)&\"월 육류\"","v":"2014년 5월 육류"},"육류"]
["1. 견적에 부치는 사항"]
[null,"가.","구매물품 내역"]
[null,"번호",null,"건명",null,null,null,null,null,null,"품명 및 수량",null,null,null,null,"입찰서 제출기간",null,null,null,null,null,null,"개찰일시"]
[null,1,null,{"$f":"YEAR(F13)&\"년 \"&MONTH(F13)&\"월분 육류구매 전자견적 제출 공고\"","v":"2014년 5월분 육류구매 전자견적 제출 공고"},null,null,null,null,null,null,"품목별 설명서 참조",null,null,null,null,{"$f":"YEAR(TODAY())&\"-\"&TEXT(MONTH(TODAY()),\"00\")&\"-\"&TEXT(DAY(TODAY()),\"00\")&\" \"","v":"2014-04-25 "},null,null,{"$f":"\"(\"&CHOOSE(WEEKDAY(TODAY()),\"일\",\"월\",\"화\",\"수\",\"목\",\"금\",\"토\")&\")  \"&F1&\"~\"","v":"(금)  13:30~"},null,null,null,{"$f":"P11&\" (\"&TEXT(P11,\"aaa\")&\")\"","v":"2014-04-28 (월)"}]
[null,null,null,null,null,null,null,null,null,null,null,null,null,null,null,{"$f":"M1","v":"2014-04-28"},null,null,{"$f":"\"(\"&TEXT(P11,\"aaa\")&\")  \"&V1","v":"(월)  10:00"},null,null,null,{"$f":"V1+Z3","v":"11:00:00"}]
[null,"나.","납품현장:  □□고등학교 급식소내"]
[null,"다.","납품기한:",null,null,{"$f":"DATE(YEAR(TODAY()),MONTH(TODAY())+1,1)","v":"2014-05-01"},null,null,null,"~",{"$f":"DATE(YEAR(TODAY()),MONTH(TODAY())+2,0)","v":"2014-05-31"}]
[null,"라.","기초금액:",null,null,"\\",{"$f":"F2","v":21702000},null,null,null,{"$f":"\"원정 (부가세 포함)\"","v":"원정 (부가세 포함)"}]
[]
["2. 견적제출 및 계약방식"]
[null,"가.","조달청국가종합전자조달(G2B)(http://g2b.go.kr)의 전자입찰방식에 의한 입찰입니다."]
[null,"나.","제한적최저가 (낙찰하한율 90% 이상) 적용입니다."]
[null,"다.","소액수의계약(총액) 유형이며, 지역제한(경북 구미)입니다."]
[null,"라.","본 건은 입찰 전 과정이 \"G2B\"를 통해 이루어집니다."]
[null,"마.","본 물품구매는 청렴계약제 시행대상입니다."]
[null,"바.","예정가격은 복수예정가격으로 결정됩니다."]
[]
["3. 견적제출 참가자격"]
[null,"가. ","본 입찰은 '지문인식 신원확인 입찰'이 적용되므로 개인인증서를 보유한 대표자 또는 입찰대리인은 \n국가종합전자조달시스템 전자입찰특별유의서 제10조 제1항 제5호에 따라 미리 지문정보를 등록하여야 전자입찰서 제출이 가능합니다."]
[]
[]
[null,"나.","지방자치단체를 당사자로 하는 계약에 관한 법률 시행령 제13조에 의한 자격을 갖추고, 지방자치단체 수의계약 운영요령(행정안전부 예규 제373호, 2011.09.15)에 의한 결격사유가 없어야 합니다."]
[]
[null,"다.","지방자치단체를 당사자로 하는 계약에 관한 법률 시행령 제 13조 및 동법시행규칙 제14조에 의한 \n유자격업체로서 주된 영업장을 경상북도 구미시에 두고 당해 입찰 목적물의 운반에 필요한 냉동탑차, 사무실(점표)을 보유 또는 임차하고 있는 자."]
[]
[]
[null,"라.","축산물가공처리법' 제9조 제2항 및 제3항에 따라 위해요소중점관리기준(HACCP)적용 도축장에서 \n처리된 식육으로 하며, 위해요소중점관리기준(HACCP) 적용작업장으로 지정받은 축산물가공장 또는 식육포장처리장에서 처리된 축산물이어야 합니다."]
[]
[]
[null,"마.","차량 보험 및 영업배상책임보험 가입된 자(1인당 1천만원 이상, 1사고당 1억원 이상)이면서 지방세, 국세완납증명서를 제시할수 있는 자여야 합니다."]
[]
[null,"바.","본 물품구매는 전자입찰방식으로 집행되므로 조달청 전자입찰 이용자등록을 필한자 이어야합니다. (전자입찰 미등록 업체인 경우에는 조달청 전자입찰 시스템가입 및 공인인증기관의 인증서를 받은후 입찰집행일 전일까지 국가종합전자조달시스템 홈페이지(http://g2b.go.kr)에 이용자 등록을 \n하여야 합니다."]
[]
[]
[]
[null,"사.","본 입찰의 무자격자가 고의로 무효의 입찰을 하거나, 낙찰자가 정당한 사유없이 계약체결 또는 \n이행을 하지않을 경우 지방자치단체를 당사자로 하는 계약에 관한 법률시행령 제92조 규정에 의거 \n부정당업자로 제재 처분합니다."]
[]
[]
[null,"아.","행정처분(영업정지, 품목제조정지, 과징금, 과태료, 벌금) 만료일로부터 3개월 경과하지않은 자 또는 해당기관으로부터 고발조치 중인 자는 입찰에 참여할수 없습니다."]
[]
[]
["4. 현품 설명"]
[null," 별도의 현품설명은 없으며, 반드시 붙임 구매목록 첨부파일을 숙지한후 견적서 제출에 참여하시기 \n바라며, 숙지하지 못한 책임은 견적 제출자에 있습니다.\n 공고기간 중 규격서 및 내역서 등에 대하여 문의사항이 있으면 급식실(☎123-4567) 또는 \n행정실(☎123-4567)로 문의하시기 바랍니다."]
[]
[]
[]
[]
["5. 견적서 제출"]
[null,"가.","본 입찰은 지문인식 신원확인 입찰이 적용됩니다. 다만, 지문인식신원확인 입찰이 곤란한 자는 \n국가종합전자조달시스템 전자입찰특별유의서 제10조 제1항 제6호 및 제7호의 절차에 따라 예외적으로 개인인증서에 의한 전자입찰서 제출이 가능합니다."]
[]
[]
[null,"나.","본 입찰은 전자입찰로만 집행하며, 전자입찰서는 국가종합전자조달 시스템 홈페이지의 \n전자입찰시스템을 이용하여 제출하여야 합니다."]
[]
[null,"다.","입찰서 제출기한:",null,null,null,null,{"$f":"P10","v":"2014-04-25 "},null,null,{"$f":"S10","v":"(금)  13:30~"},null,null,null,{"$f":"P11","v":"2014-04-28"},null,null,{"$f":"S11&\".\"","v":"(월)  10:00."}]
[null,null,"(제출기간 중에는 24시간 입찰서 제출이 가능합니다.)"]
[null,"라.","입찰서의 제출확인은 전자입찰시스템 웹 보낸문서함에서 하시기 바랍니다."]
[null,"마.","한번 제출한 입찰서는 취소하거나 수정할수 없습니다. 단, 조달청 물품구매 전자입찰특별유의서 제10조에 따라 입찰취소를 신청한 경우 입찰집행관은 입찰서를 무효처리할수 있으며, 이 경우 취소의사를 표시한 입찰자는 당해입찰에 대하여 재입찰을 할수 없습니다."]
[]
[]
[null,"바.","전자입찰시스템 또는 전송회신의 장애로 입찰연기의 경우 전자입찰시스템 장애발생이전에 유효하게 접수된 입찰서는 연기된 입찰에 유효하게 접수된 것으로 보며, 입찰서를 다시 제출할수 없습니다."]
[]
[]
[null,"사.","견적제출에 참가하고자 하는 자는 지방자치단체를 당사자로 하는 계약에 관한 법률 시행령등의 \n입찰관련법령 및 동시행규칙 제39조 제1항의 규정에 의한 물품구매전자입찰특별유의서, 입찰유의서, 계약일반조건 및 특수조건 등 기타 필요한 모든 사항에 관하여 입찰서 제출전에 완전히 숙지하여야 하며, 이를 숙지하지 못한 책임은 입찰자에게 있습니다."]
[]
[]
[]
[]
["6. 입찰보증금"]
[null,"가.","지방자치단체를 당사자로 하는 계약에 관한 법률 시행령 제37조 제3항 및 제4항에 의거 모든 입찰참가자에게 입찰보증금납부를 면제하며, 입찰보증금지급확약서의 제출은 입찰보증금지급확약내용이 기재된 전자입찰서의 제출로 갈음합니다."]
[]
[]
[null,"나.","입찰보증금의 국고귀속은 지방자치단체를 당사자로 하는 계약에 관한 법률시행령 제38조의 규정에 의합니다."]
[]
[]
["7. 개찰"]
[null,"가. 입찰집행(개찰)일시:","입찰집행(개찰)일시:",null,null,null,null,null,{"$f":"W10","v":"2014-04-28 (월)"},null,null,null,null,{"$f":"W11","v":"11:00:00"}]
[null,"나.","개찰장소: □□고등학교 입찰집행관 PC"]
[]
["8. 예정가격 및 낙찰자 결정"]
[null,"가.","예정가격 작성은 '지방자치단체 원가계산 및 예정가격 작성요령'(행정안전부 예규 제374호, 2011.09.14)에 의거 기초금액의 ±3% 범위내에서 서로 다른 15개의 복수예비가격을 작성하고, 입찰참가자 전원이 2개씩 추첨한 번호 중 가장 많이 선택된 4개의 복수예비가격을 산술평균한 금액을 예정가격으로 결정한다."]
[]
[]
[]
[null,"나.","예정가격 이하로서 예정가격 대비 낙찰하한율(90%)이상으로 견적서를 제출한 자 중 최저가격으로 \n제출한 자 순서로 지방자치단체 수의계약 운영요령(행정안전부 예규 제373호,2011.09.14)에 의거 \n계약상대자를 결정하며, 동 요령에 명시된 결격사유 중 어느하나에도 해당되지 않는 자를 계약상대자로 결정합니다."]
[]
[]
[]
[null,"다.","동일가격 견적인 경우는 지방자치단체를 당사자로 하는 계약에 관한 법률 시행령 제48조에 의거 추첨에 의하여 낙찰자를 결정한다."]
[]
[]
["9. 입찰의 무효"]
[null,"가.","지방자치단체를 당사자로 하는 계약에 관한 법률 시행령 제39조 제4항, 동 시행규칙 제42조, 물품구매입찰유의서 제12조 규정에 의합니다."]
[]
[null,"나.","전자입찰서가 제출마감시간까지 국가종합전자조달(G2B)문서서버에 도착하지 않았거나, 컴퓨터인식불능으로 인한 입찰서는 무효로 처리합니다."]
[]
[]
["10. 청렴계약 이행"]
[null,"가.","본 물품구매는 청렴계약제 시행대상이므로 청렴계약입찰특별유의서 제2조 제1항에 의거 청렴계약이행각서(업체 제출용)를 제출하여야 합니다."]
[]
[null,"나.","제출방법: 입찰에 참여하는 모든 업체는 동 특별유의서 제2조 제1항에 의거 청렴계약이행각서를 제출한것으로 간주합니다."]
[]
[null,"다.","낙찰대상자로 선정된 업체는 대표자가 청렴이행각서를 서명하여 본교 분임경리관에게 계약체결시 \n제출하여야 합니다."]
[]
[]
["11. 기타 참고사항"]
[null,"가.","입찰에 참가하는 자는 입찰공고조건, 물품구매입찰유의서, 물품구매계약일반조건, 물품구매계약특수조건, 물품구매전자입찰특별유의서, 공공입찰통합관리시스템 입찰자용 이용약관 및 기타 입찰에 필요한 모든 사항을 숙지하여야하며, 숙지하지 못하여 발생하는 책임은 입찰자에게 있습니다."]
[]
[]
[null,"나.","전자입찰참가 희망업체의 전산장비 준비부족 등의 사유로 전자입찰등록 및 투찰이 곤란한 경우에는 투찰시간 마감 24시간 이전에 조달청 전자입찰 콜센터(☎1588-0800)로 문의하여 주시기 바라며, 문의를 하지않아 발생되는 모든 책임은 입찰참가자에게 있습니다."]
[]
[]
[null,"다.","본 공고는 국가종합전자조달 시스템 홈페이지(http://www.g2b.go.kr)의 '입찰정보-물품-공고현황'에도 게재되니 이용하시기 바랍니다."]
[]
[null,"라.","입찰결과에 대한 정보는 국가종합전자조달(http://www.g2b.go.kr)의 '입찰정보-물품-개찰결과'를 이용하시기 바랍니다."]
[]
[null,"마.","기타 입찰에 관하여 자세한 사항은 급식실(☎123-4567) 또는 행정실(☎123-4567)로 문의하시기 \n바랍니다."]
[]
[]
[{"$f":"YEAR(TODAY())&\"년  \"&MONTH(TODAY())&\"월  \"&DAY(TODAY())&\"일\"","v":"2014년  4월  25일"}]
[]
["□□고등학교장"]

{"sheet":"특수조건","index":2,"n_rows":61,"n_cols":1,"rows_kept":61,"cut":false,"hidden":false,"merged":[[60,0,60,9],[51,0,51,9],[52,0,53,9],[54,0,54,9],[55,0,56,9],[57,0,58,9],[59,0,59,9],[29,0,29,9],[45,0,47,9],[48,0,48,9],[49,0,49,9],[50,0,50,9],[33,0,35,9],[36,0,38,9],[39,0,40,9],[41,0,41,9],[42,0,43,9],[16,0,17,9],[25,0,25,9],[26,0,26,9],[27,0,27,9],[28,0,28,9],[0,0,0,8],[2,0,2,9],[3,0,3,9],[4,0,4,9],[30,0,32,9],[5,0,6,9],[7,0,8,9],[9,0,10,9],[11,0,12,9],[13,0,13,9],[22,0,22,9],[18,0,20,9],[21,0,21,9],[23,0,23,9],[24,0,24,9],[14,0,15,9]]}
["OO고등학교 급식용 식품 구매 계약 특수조건"]
[]
["제1조(적용) 이 조건은 OO고등학교가 행하는 급식 물품구매계약에 적용되며 그 계약의 일부가 된다."]
["제2조(용어의 정의) 이 조건에서 사용하는 용어의 정의는 다음과 같다."]
["① “수요기관“이라 함은 계약된 물품을 계약상대자로부터 물품을 인수할 기관을 말한다."]
["② “검수”라 함은 계약목적물이 손상 또는 훼손품이 없고 납품서류상의 수량대로 납품 되었는지 \n    여부를 물품출납 공무원이 확인하는 것을 말한다."]
[]
["제3조(납품 및 검수) ① 납품 물품은 지정기일 내 계약 담당 공무원이 발급하는 물품구매 요구서에 의거 \n 08:40에 수요기관의 급식소에 납품하여야 한다. "]
[]
[" ② “검수”시 납품 물품이 요구서규격과 상이하거나 부실하여 재납품 지시하였을 경우 10:00 까지 재납품\n     하여야 한다."]
[]
["제4조(식품 등의 취급) ① 계약상대자는 식품을 납품하여 질병이나 사고가 발생 시 모든 민․형사상 책임을 \n 진다"]
[]
[" ② 품질의 평가 즉, 검수 평가는 수요기관의 판단에 따라야 한다."]
[" ③ 계약상대자는 농․수․축산물 위생관리법을 정확히 준수하여 급식상의 유해를 사전에 방지할 수 있도록 \n     하여야 하며, 신선도가 유지된 물품을 납품하여야 한다."]
[]
[" ④ 납품자는 위생적인 복장으로 식품을 취급하여야 하며, 납품 시 수요기관의 지시를 따라야 한다.\n     (위생복, 위생장화, 위생모착용)"]
[]
["제5조(계약의 해지) 납품자는 다음 각 호의 1에 해당하는 행위를 하였을 경우 수요기관(업무담당자 및 \n 관계자)이 납품자에게 3회 이상 반품 또는 경고하여도 이를 시정하지 아니하였을 때는 서류상의 통지로써 \n 계약을 해지하기로 한다."]
[]
[]
["① 식품에 유해한 물질이 혼합된 사실이 밝혀졌을 경우"]
["② 물품이 현품 설명한 기준에 부적합하여 3회 이상 반품 처리된 때"]
["③ 규격(품질, 양) 미달의 물품이 납품되었을 경우"]
["④ 유통기한이 경과된 물품이 납품되었을 경우"]
["⑤ 지정된 시간과 장소에 물품이 납품되지 않을 경우"]
["⑥ 물품 납품 시 위생적이고 안전한 상태로 운송하지 않을 경우"]
["⑦ 냉장․냉동 탑차 가동하여 운송하며 온도기록지 제출, 위생복 착용"]
["⑧ 1차 물품에 있어서 원산지표기를 하지 않을 경우"]
["⑨ 기타 수요기관이 정당하게 시정 요구하는 사항을 이행하지 않을 경우"]
["제6조(입찰참가의 제한) ① 계약담당공무원은 계약상대자가 물품구매계약을 체결하여 납품함에 있어 \n 납품검사 결과 불합격된 사실이 입찰참가 신청일 기준(수의계약 시 당일 포함) 월 3회 이상인 경우에는 \n OO고등학교가 실시하는 입찰 및 수의계약 시 참가를 제한 할 수 있다."]
[]
[]
[" ② 또한 무리한 경쟁으로 인한 저가입찰로 중간에 납품을 포기하거나, ①과 같은 사례가 발생할 경우 \n 국가를 당사자로 하는 계약에 관한 법률 제27조 및 동법 시행령 제76조에 의거 부정당 업체로 제재 조치를\n 가할 수 있다."]
[]
[]
["제7조(변경계약) 계약서상의 물품수량은 급식인원의 변동이 없는 경우의 물품수량이므로 수요기관의 \n 사정으로 인하여 물량을 가감할 수 있으며, 추가된 물량에 대한 단가는 계약시 제출하는 산출내역서의 \n 품목별 단가에 준하며, 추가품목에 대해서는 가장최근의 시장 물가조사서에 준한다."]
[]
[]
["제8조(급식일정의 변경 및 취소) 수요기관의 부득이한 사정으로 급식 일정이 변경될 경우 사전에 \n 계약상대자에게 전신수단이나 서면으로 일정변경 및 취소를 통보할 수 있다."]
[]
["제9조(급식품의 품질 및 감액조치) ① 급식품의 품질은 현품 설명서의 품목별 물품규격에 의한다."]
[" ② 납품한 급식품의 품질이 규격이하일 경우나 계약조건과 상이한 경우 계약된 금액의 50％이내에서 \n     감액 조정할 수 있다."]
[]
[]
["제10조(기타) ① 납품한 물건의 포장용기는 납품당일 을이 반드시 수거토록 한다.\n ② 전처리된 야채(씻은 당근, 깐생강, 깐마늘 등)의 경우 식품의 안전성을 보장하기 위하여 반드시 10℃ \n     이하로 입고시키도록 한다."]
[]
[]
[" ③ 냉동식품의 경우 녹은 흔적이 없도록 한다."]
[" ④ 냉장식품은 10℃이하로 입고시키도록 한다."]
[" ⑤ 포장지로 박스를 사용하는 경우, 박스 무게를 제외한 양을 입고량으로 간주한다."]
[" ⑥ 유전자검사 관련 제반 수수료는 납품업체가 전액 부담한다."]
[" ⑦ 외부에 얼음이나 물을 넣어 운반하는 제품의 경우, 1차적으로 제품을 포장하고 그 외부에 물이나 \n     얼음을 포장하여 운반토록 한다."]
[]
[" ⑧ 냉동탑차의 경우 반드시 당일 물품을 납품한 후 차량내부를 세척, 소독하도록 한다. "]
[" ⑨ 물품납품시 탑차 내부에 온도계를 비치하여, 검수 시작과 동시에 영양사가 내부온도 10℃이하임을 \n     확인할 수 있도록 한다."]
[]
[" ⑩ 납품자는 영양사가 검수를 시작하기 전에 탑차문을 열지 않도록 하며, 납품 시 반드시 물품을 검수대에\n     올려서 바닥에 방치되는 일이 없도록 한다."]
[]
[" ⑪ 규격에 원산지를 표기하지 않은 제품은 모두 국산으로 하되 최상품으로 입고한다."]
[" ⑫ 모든 축산품에는 축산물품질관리법 제3장 제15조1항~3항에 의거하여 원산지표기를 하도록 한다."]